Cogmind - Beta 10.2 @@@ ROGUE MODE // 2021.11.25 @ 00:51:35 Player: Azken Zutik Result: Destroyed by S-27 Virus with Autogun Performance ------------- Evolutions (4) 2000 Regions Visited (8) 1600 Robots Destroyed (1) 5 Value Destroyed (1) 1 Prototype IDs (23) 460 Alien Tech Used (0) 0 Bonus (948) 948 TOTAL SCORE: 5014 Bonus ------- Pacifist 634 Follower Combat Kills 14 Aligned with FarCom 300 Cogmind --------- Core Integrity 0/850 Matter 300/300 Energy 98/100 System Corruption 0% Temperature Cool (0) Movement Core (50) Location -6/Lower Caves Parts ------- > --- POWER (3) -------- (None) > --- PROPULSION (8) --- (None) > --- UTILITY (2) ------ (None) > --- WEAPON (2) ------- (None) > --- INVENTORY (4) ---- Xenon Bombardment Thruster Xenon Bombardment Thruster Xenon Bombardment Thruster Field Lobotomy Kit Peak State ------------ > --- POWER ------------ (None) > --- PROPULSION ------- (None) > --- UTILITY ---------- (None) > --- WEAPON ----------- (None) > --- INVENTORY -------- Xenon Bombardment Thruster Xenon Bombardment Thruster Xenon Bombardment Thruster Field Lobotomy Kit [Rating: 2] Favorites ----------- Power None Propulsion None Utility None Weapon None Build | -11 -10 -10 -10 -9 -8 -7 -6 -6 ------- Run | Scr Mat Min Exi Min Mat Fac Fac Low Slots Evolved 8 | . . . . . 4 2 2 . Power 2 | . . . . . 1 1 . . Propulsion 6 | . . . . . 3 1 2 . Utility . | . . . . . . . . . Weapon . | . . . . . . . . . Parts Attached . | . . . . . . . . . Power . | . . . . . . . . . Engine . | . . . . . . . . . Core . | . . . . . . . . . Reactor . | . . . . . . . . . Propulsion . | . . . . . . . . . Treads . | . . . . . . . . . Leg . | . . . . . . . . . Wheel . | . . . . . . . . . Hover . | . . . . . . . . . Flight . | . . . . . . . . . Utility . | . . . . . . . . . Device . | . . . . . . . . . Storage . | . . . . . . . . . Processor . | . . . . . . . . . Hackware . | . . . . . . . . . Protection . | . . . . . . . . . Artifact . | . . . . . . . . . Weapon . | . . . . . . . . . Energy Gun . | . . . . . . . . . Energy Cannon . | . . . . . . . . . Ballistic Gun . | . . . . . . . . . Ballistic Cannon . | . . . . . . . . . Launcher . | . . . . . . . . . Special Weapon . | . . . . . . . . . Impact Weapon . | . . . . . . . . . Slashing Weapon . | . . . . . . . . . Piercing Weapon . | . . . . . . . . . Special Melee Weapon . | . . . . . . . . . Unidentified Prototypes . | . . . . . . . . . Parts Lost . | . . . . . . . . . Power . | . . . . . . . . . Propulsion . | . . . . . . . . . Utility . | . . . . . . . . . Weapon . | . . . . . . . . . Highest Loss Streak . | . . . . . . . . . Average Slot Usage (%) . | . . . . . . . . . Naked Turns 1257 | . 21 156 107 221 64 339 130 219 Heaviest Build . | . . . . . . . . . Greatest Support 3 | 3 3 3 3 3 3 3 3 3 Greatest Overweight (x) . | . . . . . . . . . Average Overweight (x) . | . . . . . . . . . Largest Inventory Capacity 4 | 4 4 4 4 4 4 4 4 4 Average Capacity 4 | 4 4 4 4 4 4 4 4 4 Most Carried 4 | . . . 1 1 1 4 4 4 Average Carried 1 | . . . . 1 1 1 4 4 Final Capacity 4 | 4 4 4 4 4 4 4 4 4 Final Carried 4 | . . . 1 1 1 4 4 4 Class Distribution -------------------- 100% | Mutant Dominant Class ---------------- Mutant | -10/Materials Mutant | -10/Mines Mutant | -10/Exiles Mutant | -9/Mines Mutant | -8/Materials Mutant | -7/Factory Mutant | -6/Factory Mutant | -6/Lower Caves Resources | -11 -10 -10 -10 -9 -8 -7 -6 -6 ----------- Run | Scr Mat Min Exi Min Mat Fac Fac Low Matter Collected 177 | 151 . . . 26 . . . . Remotely . | . . . . . . . . . Salvage Created 25 | . . . . . . 25 . . Parts 2 | . . . . . . 2 . . Haulers Intercepted . | . . . . . . . . . Recyclers Shooed . | . . . . . . . . . Parts Field Recycled . | . . . . . . . . . Retrieved Matter . | . . . . . . . . . Parts Self-Destructed 5 | . . . . . . . . 5 Prevented . | . . . . . . . . . Kills | -11 -10 -10 -10 -9 -8 -7 -6 -6 ------- Run | Scr Mat Min Exi Min Mat Fac Fac Low Combat Hostiles Destroyed . | . . . . . . . . . Classes Destroyed 1 | . . . . . . 1 . . Worker 1 | . . . . . . 1 . . Best Kill Streak 1 | . . . . . . 1 . . Combat Bots Only . | . . . . . . . . . Max Kills in Single Turn 1 | . . . . . . 1 . . Gunslinging . | . . . . . . . . . Exploded . | . . . . . . . . . Melee . | . . . . . . . . . Uniques/NPCs Destroyed . | . . . . . . . . . Combat | -11 -10 -10 -10 -9 -8 -7 -6 -6 -------- Run | Scr Mat Min Exi Min Mat Fac Fac Low Damage Taken 1224 | . 6 7 . . 186 168 143 714 Core 1224 | . 6 7 . . 186 168 143 714 Absorbed by Shields . | . . . . . . . . . Core Remaining (%) 84 | 100 . . . 94 66 76 . . Volleys Fired . | . . . . . . . . . Largest . | . . . . . . . . . Hottest . | . . . . . . . . . Shots Fired . | . . . . . . . . . Gun . | . . . . . . . . . Cannon . | . . . . . . . . . Launcher . | . . . . . . . . . Special . | . . . . . . . . . Kinetic . | . . . . . . . . . Thermal . | . . . . . . . . . Explosive . | . . . . . . . . . Electromagnetic . | . . . . . . . . . Robot Hit Streak . | . . . . . . . . . Robot Miss Streak . | . . . . . . . . . Penetration Max . | . . . . . . . . . Secondary Targets . | . . . . . . . . . Shots Hit Robots . | . . . . . . . . . Core Hits 5 | . . 1 . . . 1 . 3 Critical Hits . | . . . . . . . . . Critical Kills . | . . . . . . . . . Critical Parts Destroyed . | . . . . . . . . . Melee Attacks . | . . . . . . . . . Impact . | . . . . . . . . . Slashing . | . . . . . . . . . Piercing . | . . . . . . . . . Sneak Attacks . | . . . . . . . . . Combat Hostiles . | . . . . . . . . . Follow-up Attacks . | . . . . . . . . . Damage Inflicted 49 | . . 16 . . . 17 . 16 Guns . | . . . . . . . . . Cannons . | . . . . . . . . . Explosions . | . . . . . . . . . Melee . | . . . . . . . . . Ramming 49 | . . 16 . . . 17 . 16 Kinetic . | . . . . . . . . . Thermal . | . . . . . . . . . Explosive . | . . . . . . . . . Electromagnetic . | . . . . . . . . . Impact . | . . . . . . . . . Slashing . | . . . . . . . . . Piercing . | . . . . . . . . . Highest Corruption 1 | . . 1 1 1 1 . . . Average Corruption 1 | . . 1 1 1 1 . . . Corruption Purged . | . . . . . . . . . Effects 3 | . . . 2 1 . . . . Energy Discharges 1 | . . . 1 . . . . . Data Loss (minor) 2 | . . . 1 1 . . . . Overload Shots . | . . . . . . . . . Overflow Damage . | . . . . . . . . . Projectiles . | . . . . . . . . . Explosions . | . . . . . . . . . Melee . | . . . . . . . . . Knockbacks . | . . . . . . . . . Impact . | . . . . . . . . . Kinetic . | . . . . . . . . . Secondary . | . . . . . . . . . Self-Inflicted Damage 22 | . . 7 . . . 8 . 7 Shots . | . . . . . . . . . Rammed 10 | 1 . 5 . . . 1 . 3 Targets Rammed 10 | 1 . 5 . . . 1 . 3 Kicked . | . . . . . . . . . Crushed . | . . . . . . . . . Highest Temperature . | . . . . . . . . . Average Temperature . | . . . . . . . . . Received Heat Transfer 237 | . . . . . 99 30 54 54 Siege Activations . | . . . . . . . . . Robots Corrupted . | . . . . . . . . . Combat Hostiles . | . . . . . . . . . Parts Fried . | . . . . . . . . . Impact Corruptions . | . . . . . . . . . Robots Melted . | . . . . . . . . . Combat Hostiles . | . . . . . . . . . Parts Melted . | . . . . . . . . . Heat Transferred . | . . . . . . . . . Parts Sabotaged . | . . . . . . . . . Parts Stolen . | . . . . . . . . . Parts Stripped . | . . . . . . . . . Power Chain Reactions . | . . . . . . . . . Missiles Intercepted . | . . . . . . . . . Alert | -11 -10 -10 -10 -9 -8 -7 -6 -6 ------- Run | Scr Mat Min Exi Min Mat Fac Fac Low Peak Influence 126 | . . . . . 61 107 126 . Initial 51 | . . . . . . 27 51 . Average 32 | . . . . . 26 62 59 . Maximum Alert Level . | . . . . . . . . . Low Security (%) 100 | 100 100 100 . 100 100 100 100 . Level 1 . | . . . . . . . . . Level 2 . | . . . . . . . . . Level 3 . | . . . . . . . . . Level 4 . | . . . . . . . . . Level 5 . | . . . . . . . . . High Security . | . . . . . . . . . Max Security . | . . . . . . . . . Squads Dispatched 3 | . 1 . . . 1 . 1 . Investigation 1 | . . . . . 1 . . . Extermination . | . . . . . . . . . Reinforcement 2 | . 1 . . . . . 1 . Assault . | . . . . . . . . . Garrison . | . . . . . . . . . Intercept . | . . . . . . . . . Construction Impeded . | . . . . . . . . . Haulers Reinforced . | . . . . . . . . . Stealth | -11 -10 -10 -10 -9 -8 -7 -6 -6 --------- Run | Scr Mat Min Exi Min Mat Fac Fac Low Distress Signals 1 | . . . . . . . 1 . Communications Jammed . | . . . . . . . . . Distress Signals . | . . . . . . . . . Times Spotted 35 | . 4 . . . 5 5 7 14 Peak Tracking Total 6 | . 2 . . . 6 4 5 5 Tactical Retreats 7 | . . . . . . 1 1 5 Traps | -11 -10 -10 -10 -9 -8 -7 -6 -6 ------- Run | Scr Mat Min Exi Min Mat Fac Fac Low Traps Triggered 5 | . . . . . 2 3 . . Indirectly . | . . . . . . . . . Trap Hack Attempts . | . . . . . . . . . Triggered . | . . . . . . . . . Disarmed . | . . . . . . . . . Reprogrammed . | . . . . . . . . . Reused . | . . . . . . . . . Traps Extracted . | . . . . . . . . . Installed . | . . . . . . . . . Triggered 2 | . . . . . . . . 2 Machines | -11 -10 -10 -10 -9 -8 -7 -6 -6 ---------- Run | Scr Mat Min Exi Min Mat Fac Fac Low Machines Disabled . | . . . . . . . . . Max in Single Turn . | . . . . . . . . . Machines Sabotaged . | . . . . . . . . . Garrisons Compromised . | . . . . . . . . . Overloaded Fab Kills . | . . . . . . . . . Fab Network Shutdowns . | . . . . . . . . . Hacking | -11 -10 -10 -10 -9 -8 -7 -6 -6 --------- Run | Scr Mat Min Exi Min Mat Fac Fac Low Machines Accessed 5 | . 1 . 1 . 1 2 . . Terminals 4 | . 1 . . . 1 2 . . Fabricators . | . . . . . . . . . Repair Stations . | . . . . . . . . . Recycling Units . | . . . . . . . . . Scanalyzers . | . . . . . . . . . Garrison Access . | . . . . . . . . . Total Hacks 8 | . 2 . 1 . 2 3 . . Successful 3 | . 1 . 1 . 1 . . . Failed 5 | . 1 . . . 1 3 . . Catastrophic 2 | . . . . . . 2 . . Database Lockouts . | . . . . . . . . . Manual 2 | . . . 1 . 1 . . . Terminals 7 | . 2 . . . 2 3 . . Fabricators . | . . . . . . . . . Repair Stations . | . . . . . . . . . Recycling Units . | . . . . . . . . . Scanalyzers . | . . . . . . . . . Garrison Access . | . . . . . . . . . Terminal Hacks 3 | . 1 . 1 . 1 . . . Emergency Access Points 2 | . 1 . . . 1 . . . EX-Prototype ID Bank 1 | . . . 1 . . . . . Fabricator Hacks . | . . . . . . . . . Repair Station Hacks . | . . . . . . . . . Recycling Unit Hacks . | . . . . . . . . . Scanalyzer . | . . . . . . . . . Garrison Access Hacks . | . . . . . . . . . Unauthorized Hacks . | . . . . . . . . . Terminals . | . . . . . . . . . Fabricators . | . . . . . . . . . Repair Stations . | . . . . . . . . . Recycling Units . | . . . . . . . . . Scanalyzers . | . . . . . . . . . Garrison Access . | . . . . . . . . . Data Cores Recovered . | . . . . . . . . . Used . | . . . . . . . . . Hacking Detections 4 | . 1 . . . 1 2 . . Full Trace Events . | . . . . . . . . . Feedback Events . | . . . . . . . . . Feedback Blocked . | . . . . . . . . . Robot Schematics Acquired . | . . . . . . . . . Robots Built . | . . . . . . . . . Matter . | . . . . . . . . . Time . | . . . . . . . . . Total Robot Build Rating . | . . . . . . . . . Part Schematics Acquired . | . . . . . . . . . Parts Built . | . . . . . . . . . Matter . | . . . . . . . . . Time . | . . . . . . . . . Total Part Build Rating . | . . . . . . . . . Parts Repaired . | . . . . . . . . . Time . | . . . . . . . . . Parts Recycled . | . . . . . . . . . Recycled Matter . | . . . . . . . . . Retrieved Matter . | . . . . . . . . . Retrieved Components . | . . . . . . . . . Parts Scanalyzed . | . . . . . . . . . Part Schematics Acquired . | . . . . . . . . . Parts Damaged . | . . . . . . . . . Bothacking | -11 -10 -10 -10 -9 -8 -7 -6 -6 ------------ Run | Scr Mat Min Exi Min Mat Fac Fac Low Used RIF Installer . | . . . . . . . . . Robots Hacked . | . . . . . . . . . Non-combat . | . . . . . . . . . Combat . | . . . . . . . . . Robot Hacks Applied . | . . . . . . . . . Relay Couplers Released . | . . . . . . . . . Robots Rewired . | . . . . . . . . . Allies Hacked . | . . . . . . . . . Hacks Repelled . | . . . . . . . . . Allies | -11 -10 -10 -10 -9 -8 -7 -6 -6 -------- Run | Scr Mat Min Exi Min Mat Fac Fac Low Total Allies 2 | . . . . 2 . . . . Largest Group 2 | . . . . 2 2 . . . Highest-Rated Group 49 | . . . . 49 49 . . . Highest-Rated Ally 31 | . . . . 31 31 . . . Total Orders . | . . . . . . . . . Ally Attacks 4 | . . . . . 4 . . . Total Damage 40 | . . . . . 40 . . . Kills 2 | . . . . . 2 . . . Allies Corrupted . | . . . . . . . . . Allies Melted . | . . . . . . . . . Intel | -11 -10 -10 -10 -9 -8 -7 -6 -6 ------- Run | Scr Mat Min Exi Min Mat Fac Fac Low Robot Analysis Total . | . . . . . . . . . Derelict Logs Recovered 2 | . . 1 . 1 . . . . Drone Launches . | . . . . . . . . . Drone Recoveries . | . . . . . . . . . Exploration | -11 -10 -10 -10 -9 -8 -7 -6 -6 ------------- Run | Scr Mat Min Exi Min Mat Fac Fac Low Turns Passed 1267 | 10 21 156 107 221 64 339 130 219 Spaces Moved 2264 | 18 41 301 211 288 82 639 252 432 Core 2264 | 18 41 301 211 288 82 639 252 432 Treads . | . . . . . . . . . Legs . | . . . . . . . . . Wheels . | . . . . . . . . . Hover . | . . . . . . . . . Flight . | . . . . . . . . . Fastest Speed 50 | 50 50 50 50 50 50 50 50 50 Average Speed 50 | 50 50 50 50 50 50 50 50 50 Slowest Speed 50 | 50 50 50 50 50 50 50 50 50 Overloaded Moves . | . . . . . . . . . Propulsion Burnouts . | . . . . . . . . . Robots Hopped . | . . . . . . . . . Cave-ins Triggered . | . . . . . . . . . Exploration Rate (%) 39 | 3 22 78 61 77 17 27 13 59 Regions Visited 8 Branch Regions 4 Pre-discovered Areas . | . . . . . . . . . Known Exits Taken . | . . . . . . . . . Unknown Exits Taken 8 | 1 1 1 1 1 1 1 1 . Scrap Searched 4 | . . 2 . 2 . . . . Spaces Dug . | . . . . . . . . . Terrain Destroyed . | . . . . . . . . . Melee . | . . . . . . . . . Projectile . | . . . . . . . . . AOE . | . . . . . . . . . Terrain Rammed . | . . . . . . . . . Walls Destroyed . | . . . . . . . . . Machines Disabled . | . . . . . . . . . Actions | -11 -10 -10 -10 -9 -8 -7 -6 -6 --------- Run | Scr Mat Min Exi Min Mat Fac Fac Low Total 2389 | 18 40 305 211 364 104 657 255 435 Wait 104 | . . . . 77 23 . 4 . Move 2256 | 17 40 300 210 287 81 638 251 432 Hop . | . . . . . . . . . Pick Up 4 | . . . 1 . . 3 . . Fast Attach . | . . . . . . . . . Attach . | . . . . . . . . . Detach . | . . . . . . . . . Swap . | . . . . . . . . . Drop . | . . . . . . . . . Fire . | . . . . . . . . . Melee . | . . . . . . . . . Ram 10 | 1 . 5 . . . 1 . 3 Kick . | . . . . . . . . . Crush . | . . . . . . . . . Escape Stasis 15 | . . . . . . 15 . . Rewire . | . . . . . . . . . Trap . | . . . . . . . . . Miscellaneous . | . . . . . . . . . Route ------- -11/Scrapyard -10/Materials -10/Mines (discovered 3 exits: [*Mat x2] / *Exi) -10/Exiles -9/Mines -8/Materials -7/Factory -6/Factory -6/Lower Caves History --------- Turn | Location | Event 2 | -11/Scrapyard | Discovered new exit (range 16) 11 | -11/Scrapyard | Entered Materials 23 | -10/Materials | Discovered new exit (range 16) 32 | -10/Materials | Entered Mines 134 | -10/Mines | Discovered new exit (range 8) 135 | -10/Mines | Learned Materials garrison access intel 141 | -10/Mines | Discovered new exit (range 2) 144 | -10/Mines | Received a Rocket Launcher from a helpful Derelict 186 | -10/Mines | Deemed a non-threat by the Exiles lab entrance 186 | -10/Mines | Discovered new exit (range 5) 188 | -10/Mines | Entered Exiles 202 | -10/Exiles | Met 8R-AWN 209 | -10/Exiles | Met EX-HEX 224 | -10/Exiles | Met EX-BIN 231 | -10/Exiles | Aligned with FarCom system 231 | -10/Exiles | Given EX-Vault access code 243 | -10/Exiles | Opened EX-Vault 246 | -10/Exiles | Found Field Lobotomy Kit 257 | -10/Exiles | Warned to stay clear of 0b10 Research branches 271 | -10/Exiles | Met EX-DEC 288 | -10/Exiles | Discovered new exit (range 15) 295 | -10/Exiles | Left Exiles lab with Field Lobotomy Kit 295 | -10/Exiles | Entered Mines 305 | -9/Mines | Build established: Mutant 430 | -9/Mines | Learned location of 1 exit from Proximity Caves 441 | -9/Mines | Discovered new exit (range 6) 516 | -9/Mines | Entered Materials 516 | -8/Materials | Accompanied by 2 allies 516 | -8/Materials | Evolved 4 slots: Power x1, Propulsion x3 517 | -8/Materials | Loaded intel: 1 garrison access location 521 | -8/Materials | Led the pair of lost Derelicts to an unsafe place 573 | -8/Materials | Discovered new exit (range 16) 580 | -8/Materials | Entered Factory 580 | -7/Factory | Evolved 2 slots: Power x1, Propulsion x1 913 | -7/Factory | Discovered new exit (range 12) 919 | -7/Factory | Entered another Factory area 919 | -6/Factory | Evolved 2 slots: Propulsion x2 986 | -6/Factory | Spotted B-75 Beast 1041 | -6/Factory | Discovered new exit (range 16) 1049 | -6/Factory | Entered Lower Caves 1050 | -6/Lower Caves | Encountered a Warlord checkpoint 1164 | -6/Lower Caves | Attracted the attention of an 0b10 checkpoint 1178 | -6/Lower Caves | Core integrity fell below 50% 1223 | -6/Lower Caves | Core integrity fell below 20% 1268 | -6/Lower Caves | Destroyed by S-27 Virus with Autogun Last Messages --------------- 01040_ O-24 Administrator sends out distress signal. 01040_ O-24 Administrator: "IFF HANDSHAKE FAILED. SECURING TERMINAL." 01041_ EXIT=FOUND 01041_ K-01 Serf pushes G-50 Soldier. 01042_ K-01 Serf destroyed. 01043_ K-01 Serf pushes G-50 Soldier. 01043_ R-10 Processor collects Lgt. Ion Engine. 01044_ K-01 Serf pushes G-50 Soldier. 01047_ ALERT: Hostiles spotted, dispatching reinforcements to Terminal F010. 01048_ K-01 Serf collects debris. LOCATION=UNKNOWN GOAL=ESCAPE 01050_ 18-KHG(M): "This area isn't safe." 01164_ Y-54 Guardian: "INTERCEPTING UNREGISTERED DERELICT." 01185_ S-27 Virus knocked back. 01203_ S-27 Virus triggered Fire Trap. 01203_ Burning plasma bursts from the floor. 01203_ S-27 Virus destroyed. 01264_ Slammed into S-27 Virus. Map ----- +----------------------------------------------------+ | ????????????????##??# ###???? ##???### ? | | ???????????????## #?# ##???????#??????####?? | | ???????????????# ## #### #????????????????????? | | ????????????????# ##?# #?????????######?????? | | ????????????????## #? #?????????? #?????? | | ?????????????????# #? ##???????????# #?????? | | ????????????????# ######????????????# ###???? | | ???????????????# ##?????????????????# ##??# | | ??????????????# #??????####???????## #?## | | ??????????????## ##??????# ######## ### | | ???????????????## ##??????# ### | | ????????????????# ????????# ## | | ????????????????# ????????# | | ???????????????? ????????# ???# %% ## | | ???????????????? ???????? ???# %!%####### | | ??????????????? #????????? ##?# #?????? | | ??????????????? ??????????? #?# #?????? | | ?????????????? ??????????? #?# ###?????? | | ??????????????? ??????####?? ## ##???????? | | ??????????????? ???????? #??# ## #????????? | | ?????????????????????????# #??# ### #????????? | | ?????????????????????????#s##?# #?##"###????????? | | ????????????????????????## ### ### %##?????????? | | ?????????????????????#### s## s " #?????????? | | ?????????????????????# %s% # ## #?????????? | | ?????????????????????# @ ## ### #?????????? | | ??????????????????# $ ### ### ????????? | | ??????????????????###### ##? #?#### #??????? | | ???????????????????????####?# #????? #??????? | | ????????????????????????????## # ????? #?????? | | ?????????????????????????????### #?????##?????? | | ????????????????????????????????# ##????????????? | | ?????????????????????????????????###?????????????? | | ?????????????????????????????????????????????????? | | ?????????????????????????????????????????????????? | | ?????????????????????????????????????????????????? | | ?????????????????????????????????????????????????? | | ?????????????????????????????????????????????????? | | ?????????????????????????????????????????????????? | | ?????????????????????????????????????????????????? | | ?????????????????????????????????????????????????? | | ?????????????????????????????????????????????????? | | ?????????????????????????????????????????????????? | | ?????????????????????????????????????????????????? | | ?????????????????????????????????????????????????? | | ?????????????????????????????????????????????????? | | ?????????????????????????????????????????????????? | | ?????????????????????????????????????????????????? | | | | | +----------------------------------------------------+ Best States ------------- Heat Dissipation 37 Energy Generation 5 Energy Capacity 100 Matter Stores 300 Matter Capacity 300 Sight Range 16 Terrain Scan Density 10 Evasion (%) 50 Item Schematics ----------------- None Robot Schematics ------------------ None Fabricated ------------ Nothing Alien Tech Used ----------------- None Achievements -------------- None Challenges ------------ None Game ------ Seed SegregatorEtherialStorm Manual? 0 Play Time 00:20:25 Cumulative 66.5 hours Start 2021.11.25 @ 00:34:31 End 2021.11.25 @ 00:51:35 Sessions 1 Manual Loads 0 Difficulty Rogue Special Mode None Game No. 38 Rogue 38 Adventurer 0 Explorer 0 Win Type - Total 1 Types 1/0/0/0/0/0/0/0/0 Lore% 31 Gallery% 47 Achievement% 39 Wizard Run 0 Options --------- ASCII 0 Keyboard 0 Movement Mouse Keybinds 0 Fullscreen 0 Font 28/SmallcapsGlow Map View 72x54 Tactical HUD 1 Map Filters NONE Filters NONE Steam 1 RUN: 39417fde-f852-4d3b-be84-38608f5e6e50